bitfinex/quotes_SOLUSD_20251118
["timestamp","ask_amount","ask_price","bid_price","bid_amount"]
[1763430741017,18.12096,132.15,132.14,0.7]
[1763430741192,4.52,132.15,132.14,0.7]
[1763430741389,22.64096,132.15,132.14,10.48882769]
[1763430741985,4.52,132.15,132.14,10.48882769]
[1763430743618,27.43703411,132.18,132.15,9.78882769]
[1763430743812,4.52,132.17,132.15,0.7]
[1763430744014,13.83607411,132.17,132.15,0.7]
[1763430744795,9.31607411,132.16,132.13,10.48882769]
[1763430745003,9.31607411,132.14,132.11,9.78882769]
[1763430745203,4.52,132.13,132.11,18.92164172]
[1763430746005,9.31607411,132.12,132.1,9.78882769]
[1763430746306,9.31607411,132.12,132.1,10.48882769]
[1763430747123,9.31607411,132.12,132.1,9.78882769]
[1763430747818,9.31607411,132.12,132.1,10.48882769]
[1763430748019,4.52,132.11,132.1,9.78882769]
[1763430748224,4.52,132.11,132.1,18.22164172]
[1763430748401,4.52,132.11,132.1,18.92164172]
[1763430749504,4.52,132.11,132.1,10.48882769]
[1763430749932,4.52,132.11,132.1,18.96012116]
[1763430752227,8.48020019,132.11,132.1,18.96012116]
[1763430752599,14.50592051,132.11,132.1,18.26012116]
[1763430754727,8.48020019,132.11,132.1,18.26012116]
[1763430755125,8.48020019,132.11,132.1,18.96012116]
[1763430755426,8.48020019,132.11,132.1,9.78882769]
[1763430756023,14.50592051,132.11,132.1,18.28747163]
[1763430756208,14.50592051,132.11,132.1,9.78882769]
[1763430756410,8.48020019,132.11,132.1,10.48882769]
[1763430756614,3.96020019,132.11,132.1,10.48882769]
[1763430756816,6.02572032,132.16,132.1,29.1177383]
[1763430757027,8.47997847,132.15,132.14,16.16066892]
[1763430757512,8.47997847,132.15,132.14,16.86066892]
[1763430757999,14.50569879,132.15,132.14,16.16066892]
[1763430760135,18.12096,132.14,132.13,6.37184123]
[1763430760427,18.12096,132.12,132.11,16.16066892]
[1763430760634,28.66668032,132.12,132.11,16.16066892]
[1763430760820,24.89085481,132.12,132.11,16.16066892]
[1763430761023,20.37085481,132.12,132.11,16.16066892]
[1763430761349,4.52,132.12,132.11,23.09201798]
[1763430763336,4.52,132.12,132.11,10.48882769]
[1763430763522,4.52,132.12,132.11,18.99141758]
[1763430764758,6.76989481,132.12,132.11,18.29141758]
[1763430764907,6.76989481,132.12,132.11,9.78882769]
[1763430765535,4.52,132.12,132.11,10.46882769]
[1763430765732,4.52,132.12,132.11,18.97141758]
[1763430766034,22.64096,132.12,132.11,10.46882769]
[1763430766418,22.64096,132.12,132.11,18.97141758]
[1763430767411,2.24989481,132.13,132.11,18.97141758]
[1763430767633,4.52,132.12,132.11,18.97141758]
[1763430768116,4.52,132.12,132.11,10.46882769]
[1763430768316,24.89085481,132.12,132.11,9.78882769]
[1763430768515,24.89085481,132.12,132.11,16.16483706]
[1763430768816,25.61085481,132.12,132.11,6.37600937]
[1763430769018,25.61085481,132.12,132.08,16.16483706]
[1763430769216,20.37085481,132.09,132.08,6.37600937]
[1763430769409,33.89043405,132.09,132.06,6.37600937]
[1763430769715,20.37085481,132.07,132.06,9.78882769]
[1763430769914,24.89085481,132.07,132.06,16.16483706]
[1763430770223,20.37085481,132.07,132.05,6.57600937]
[1763430770429,6.76989481,132.06,132.05,6.57600937]
[1763430770744,18.12096,132.07,132.05,6.57600937]
[1763430770745,18.12096,132.07,132.06,0.68]
[1763430770948,4.52,132.07,132.06,9.18567521]
[1763430771417,4.52,132.07,132.06,0.68]
[1763430771946,6.76989481,132.07,132.06,6.3800394]
[1763430773144,6.76989481,132.07,132.05,16.36886709]
[1763430773323,2.24989481,132.06,132.05,10.66882769]
[1763430774327,2.24989481,132.06,132.05,17.04239056]
[1763430774532,6.76989481,132.07,132.05,10.66882769]
[1763430774733,6.76989481,132.07,132.06,6.37324304]
[1763430774933,6.76989481,132.07,132.05,17.04207073]
[1763430775944,4.00751558,132.07,132.05,17.04207073]
[1763430776148,6.25741039,132.07,132.05,17.04207073]
[1763430776352,0.72,132.12,132.06,7.05324304]
[1763430776534,102.7,132.13,132.06,7.05324304]
[1763430776535,4.52,132.11,132.08,9.78882769]
[1763430776854,20.37085481,132.09,132.08,16.84207073]
[1763430777227,18.12096,132.09,132.08,16.84207073]
[1763430777552,22.64096,132.09,132.08,16.84207073]
[1763430777775,3.95997847,132.15,132.08,21.22439771]
[1763430778050,6.76989481,132.14,132.1,16.14488024]
[1763430778255,6.76989481,132.14,132.12,9.78882769]
[1763430778256,24.89085481,132.14,132.12,9.78882769]
[1763430778454,6.76989481,132.14,132.12,9.78882769]
[1763430778655,6.76989481,132.14,132.12,10.46882769]
[1763430778874,28.66440013,132.14,132.12,16.82488024]
[1763430779035,6.74344013,132.13,132.12,9.78882769]
[1763430779350,6.02344013,132.13,132.1,16.14488024]
[1763430779559,6.02344013,132.11,132.1,16.14488024]
[1763430779732,10.54344013,132.11,132.1,16.14488024]
[1763430779928,10.54344013,132.11,132.1,9.78882769]
[1763430780165,4.52,132.11,132.1,9.78882769]
[1763430780370,29.38440013,132.11,132.1,9.78882769]
[1763430781038,28.66440013,132.11,132.1,9.78882769]
[1763430781468,29.38440013,132.11,132.1,9.78882769]
[1763430781775,28.66440013,132.11,132.1,9.78882769]
[1763430783145,28.66440013,132.11,132.08,6.35605255]
[1763430783465,6.02344013,132.09,132.08,9.78882769]
[1763430783653,10.54344013,132.09,132.08,9.78882769]
[1763430784248,10.54344013,132.09,132.08,16.14488024]
[1763430785142,4.52,132.09,132.08,16.14488024]
[1763430786945,18.12096,132.11,132.09,9.78882769]
[1763430787155,9.9834186,132.15,132.11,9.78882769]
[1763430787452,6.02344013,132.13,132.11,16.16113619]
[1763430787647,3.95997847,132.15,132.12,7.0523085]
[1763430787847,4.52,132.14,132.13,6.3723085]
[1763430788155,22.64096,132.14,132.13,7.0523085]
[1763430788968,10.54344013,132.14,132.13,6.3723085]
[1763430790251,11.26344013,132.14,132.1,6.3723085]
[1763430790592,18.12096,132.09,132.08,9.78882769]
[1763430790748,28.66440013,132.09,132.08,16.16649287]
[1763430790948,24.14440013,132.09,132.08,16.16649287]
[1763430791173,28.66440013,132.09,132.08,9.78882769]
[1763430791676,22.64096,132.09,132.08,10.46882769]
[1763430791854,24.14440013,132.12,132.09,9.78882769]
[1763430792052,4.52,132.11,132.1,10.44882769]
[1763430792768,5.17,132.11,132.1,9.78882769]
[1763430792973,18.12096,132.12,132.11,9.78882769]
[1763430793173,18.12096,132.12,132.11,18.95043029]
[1763430793174,22.64096,132.12,132.11,18.95043029]
[1763430793681,28.66440013,132.12,132.11,6.37570631]
[1763430793986,22.64096,132.12,132.11,6.37570631]
[1763430794554,28.66440013,132.12,132.11,6.37570631]
[1763430795888,22.64096,132.12,132.11,0.66]
[1763430796187,18.12096,132.11,132.1,8.5016026]
[1763430796354,18.12096,132.11,132.1,9.1616026]
[1763430796767,10.54344013,132.12,132.1,9.1616026]
[1763430797166,4.52,132.11,132.1,0.66]
[1763430797975,4.52,132.11,132.09,18.29043029]
[1763430797976,28.66440013,132.11,132.09,18.29043029]
[1763430798175,28.66440013,132.11,132.09,18.95043029]
[1763430798776,6.70344013,132.1,132.08,16.1658928]
[1763430799086,28.66440013,132.09,132.06,6.37706511]
[1763430799269,4.52,132.09,132.07,9.78882769]
[1763430799467,24.14440013,132.08,132.07,16.1658928]
[1763430799864,24.14440013,132.08,132.07,9.78882769]
[1763430800090,18.12096,132.08,132.07,16.1658928]
[1763430800386,22.64096,132.08,132.07,16.1658928]
[1763430801358,28.66440013,132.08,132.07,9.78882769]
[1763430801585,22.64096,132.08,132.07,9.78882769]
[1763430802387,28.66440013,132.08,132.07,9.78882769]
[1763430802765,24.89219218,132.08,132.07,9.78882769]
[1763430804380,24.89219218,132.08,132.07,16.16496633]
[1763430805293,25.57219218,132.08,132.07,6.37613864]
[1763430805478,18.12096,132.06,132.05,9.98882769]
[1763430805791,24.89219218,132.06,132.05,9.98882769]
[1763430805959,25.57219218,132.06,132.05,9.98882769]
[1763430806900,24.89219218,132.06,132.05,9.98882769]
[1763430807261,7.45123218,132.06,132.05,0.2]
[1763430807465,25.57219218,132.06,132.05,0.2]
[1763430807666,7.45123218,132.06,132.05,0.2]
[1763430808803,25.57219218,132.06,132.05,0.2]
[1763430809289,21.05219218,132.06,132.05,0.2]
[1763430809471,25.57219218,132.06,132.05,0.2]
[1763430810514,7.45123218,132.06,132.05,0.2]
[1763430811494,24.89219218,132.06,132.05,0.2]
[1763430812189,20.37219218,132.06,132.05,0.2]
[1763430812579,24.89219218,132.06,132.05,0.2]
[1763430812892,21.63981208,132.06,132.05,0.2]
[1763430813094,26.15981208,132.06,132.05,0.2]
[1763430814603,21.63981208,132.06,132.05,10.65882769]
[1763430814813,26.15981208,132.06,132.05,10.65882769]
[1763430814983,3.51885208,132.08,132.05,10.65882769]
[1763430815182,4.52,132.07,132.06,0.67]
[1763430815688,8.03885208,132.07,132.05,0.2]
[1763430815896,8.03885208,132.07,132.05,9.98882769]
[1763430816208,8.03885208,132.07,132.06,0.67]
[1763430816591,4.52,132.07,132.06,10.45882769]
[1763430816789,103.38,132.13,132.07,9.78882769]
[1763430816790,3.51885208,132.13,132.07,9.78882769]
[1763430817101,4.52,132.12,132.1,9.78882769]
[1763430817277,18.9,132.16,132.1,19.67085055]
[1763430817278,18.22,132.16,132.1,19.67085055]
[1763430817478,4.52,132.15,132.12,19.67085055]
[1763430817684,4.52,132.15,132.14,9.78882769]
[1763430818110,4.52,132.15,132.14,10.45882769]
[1763430818412,8.03885208,132.15,132.12,7.03317078]
[1763430818592,21.73885208,132.16,132.14,9.78882769]
[1763430818794,4.52,132.15,132.14,9.78882769]
[1763430819010,4.52,132.15,132.13,9.78882769]
[1763430819307,4.52,132.15,132.13,16.15199847]
[1763430819499,9.31845774,132.19,132.15,9.78882769]
[1763430819699,4.52,132.18,132.15,16.13927973]
[1763430820016,4.52,132.18,132.16,10.45882769]
[1763430820017,9.31845774,132.17,132.16,10.45882769]
[1763430820392,9.31845774,132.17,132.16,9.78882769]
[1763430821016,27.43941774,132.17,132.16,9.78882769]
[1763430822117,27.43941774,132.17,132.15,9.78882769]
[1763430822290,9.31845774,132.16,132.15,9.78882769]
[1763430822490,9.31845774,132.16,132.13,9.78882769]
[1763430822691,13.83845774,132.15,132.13,10.46882769]
[1763430823301,4.52,132.15,132.13,10.46882769]
[1763430823501,9.31845774,132.14,132.12,9.78882769]
[1763430823812,4.52,132.13,132.12,10.46882769]
[1763430824116,4.52,132.13,132.12,9.78882769]
[1763430824521,4.52,132.13,132.12,10.46882769]
[1763430824892,13.83845774,132.13,132.1,6.35045204]
[1763430825090,9.31845774,132.12,132.11,9.78882769]
[1763430825503,13.83845774,132.13,132.11,0.68]
[1763430827093,9.31845774,132.12,132.1,9.78882769]
[1763430827294,4.52,132.11,132.1,9.78882769]
[1763430827519,4.52,132.11,132.1,10.46882769]
[1763430827823,4.52,132.11,132.1,16.13927973]
[1763430828021,4.52,132.11,132.1,9.78882769]
[1763430828216,4.52,132.11,132.1,10.46882769]
[1763430828517,4.52,132.11,132.1,16.81927973]
[1763430829525,4.52,132.11,132.1,10.46882769]
[1763430830604,14.50845774,132.11,132.1,9.78882769]
[1763430830809,13.83845774,132.11,132.08,9.78882769]
[1763430831012,9.31845774,132.1,132.08,10.46882769]
[1763430831205,4.52,132.09,132.08,10.46882769]
[1763430831426,4.52,132.09,132.07,9.78882769]
[1763430832004,4.52,132.09,132.08,0.68]
[1763430833322,4.52,132.09,132.07,16.13927973]
[1763430833527,4.52,132.09,132.07,9.78882769]
[1763430834020,4.52,132.09,132.07,10.46882769]
[1763430834431,4.52,132.09,132.08,0.68]
[1763430834916,4.52,132.09,132.07,9.78882769]
[1763430834917,13.83845774,132.09,132.07,9.78882769]
[1763430835124,13.83845774,132.09,132.06,10.46882769]
[1763430835327,13.83845774,132.09,132.07,0.68]
[1763430835526,9.31845774,132.1,132.07,0.68]
[1763430835717,4.52,132.09,132.07,7.03045204]
[1763430836123,4.52,132.09,132.07,6.35045204]
[1763430836447,13.83845774,132.09,132.06,10.46882769]
[1763430836629,13.83845774,132.09,132.06,16.81927973]
[1763430836927,13.83845774,132.09,132.07,0.68]
[1763430837131,18.12096,132.11,132.07,0.68]
[1763430837305,4.52,132.1,132.07,7.03045204]
[1763430837727,13.83845774,132.1,132.07,7.03045204]
[1763430837927,13.83845774,132.1,132.07,6.35045204]
[1763430838129,13.83845774,132.1,132.08,0.68]
[1763430838130,4.52,132.1,132.08,0.68]
[1763430838328,4.52,132.09,132.08,0.68]
[1763430839629,102.7,132.13,132.09,9.78882769]
[1763430839836,4.52,132.11,132.09,16.13927973]
[1763430840038,4.52,132.11,132.1,10.46882769]
[1763430840438,4.52,132.11,132.1,16.81927973]
[1763430840737,14.50845774,132.11,132.07,6.35045204]
[1763430840926,9.31845774,132.08,132.05,16.33927973]
[1763430841127,4.52,132.07,132.06,16.13927973]
[1763430841336,4.52,132.07,132.06,10.46882769]
[1763430844039,13.83845774,132.07,132.06,9.78882769]
[1763430844463,32.62941774,132.07,132.05,0.2]
[1763430844743,9.31845774,132.06,132.05,0.2]
[1763430844929,9.98845774,132.06,132.05,0.2]
[1763430847231,9.31845774,132.06,132.05,0.88]
[1763430847446,13.83845774,132.06,132.05,0.2]
[1763430848047,14.50845774,132.06,132.05,0.2]
[1763430850350,117.20845774,132.06,132.05,0.2]
[1763430852157,14.50845774,132.06,132.05,0.2]
[1763430852651,14.50845774,132.06,132.04,0.2]
[1763430852823,112.70845774,132.05,132.03,0.2]
[1763430853029,116.53845774,132.04,132.02,0.2]
[1763430853225,112.01845774,132.03,132.01,0.2]
[1763430853546,13.83845774,132.02,132.01,0.2]
[1763430853737,14.52845774,132.02,132.01,0.2]
[1763430855049,18.12096,131.99,131.97,0.2]
[1763430855256,28.12941774,131.99,131.97,0.2]
[1763430855446,14.52845774,131.98,131.97,0.2]
[1763430857628,9.31845774,131.98,131.97,0.2]
[1763430857942,31.95941774,131.98,131.97,0.2]
[1763430858138,27.43941774,131.98,131.97,10.64882769]
[1763430858349,31.95941774,131.98,131.97,10.64882769]
[1763430859052,31.95941774,131.98,131.97,9.98882769]
[1763430859251,31.95941774,131.98,131.97,0.2]
[1763430859557,32.64941774,131.98,131.97,0.2]
[1763430860661,31.95941774,131.98,131.97,0.2]
[1763430861332,32.64941774,131.98,131.97,0.2]
[1763430862553,116.53845774,131.98,131.97,0.89]
[1763430862936,116.53845774,131.98,131.97,0.2]
[1763430864152,117.22845774,131.98,131.97,0.2]
[1763430865839,8.37390277,132.04,131.97,10.67882769]
[1763430865840,102.7,132.01,131.97,10.67882769]
[1763430866069,9.31845774,132.03,131.99,9.78882769]
[1763430866258,18.24,132.05,132.02,9.78882769]
[1763430866474,9.31845774,132.08,132.04,9.78882769]
[1763430866648,13.73845774,132.07,132.04,9.78882769]
[1763430866950,4.42,132.06,132.05,10.47882769]
[1763430867665,18.12096,132.07,132.05,10.47882769]
[1763430867864,4.54,132.06,132.05,9.78882769]
[1763430868367,4.54,132.06,132.05,10.47882769]
[1763430868587,20.24,132.19,132.06,9.78882769]
[1763430868875,9.31845774,132.13,132.08,19.10728543]
[1763430869038,4.52,132.12,132.08,19.10728543]
[1763430869374,18.12096,132.11,132.1,9.78882769]
[1763430869667,13.83845774,132.12,132.1,9.78882769]
[1763430869846,31.95941774,132.12,132.11,10.47882769]
[1763430870056,9.31845774,132.12,132.11,10.47882769]
[1763430870361,4.52,132.12,132.11,10.47882769]
[1763430870937,27.43941774,132.15,132.12,9.78882769]
[1763430871267,4.52,132.14,132.12,10.47882769]
[1763430871467,13.83845774,132.14,132.11,9.78882769]
[1763430871662,13.83845774,132.14,132.13,9.78882769]
[1763430871852,9.31845774,132.14,132.13,9.78882769]
[1763430872033,13.83845774,132.14,132.13,0.69]
[1763430872239,13.83845774,132.14,132.1,0.69]
[1763430872450,9.31845774,132.12,132.1,0.69]
[1763430872642,4.52,132.11,132.1,10.47882769]
[1763430872867,18.12096,132.13,132.11,9.78882769]
[1763430873074,0.69,132.18,132.11,9.78882769]
[1763430873075,4.52,132.12,132.11,10.47882769]
[1763430873368,4.52,132.12,132.1,9.31845774]
[1763430873666,3.8,132.12,132.11,9.31845774]
[1763430874172,3.8,132.12,132.11,19.79728543]
[1763430874341,27.43941774,132.16,132.12,9.78882769]
[1763430874540,4.52,132.15,132.12,0.69]
[1763430874775,4.52,132.15,132.14,9.78882769]
[1763430875142,4.52,132.15,132.14,0.69]
[1763430875143,22.64096,132.15,132.14,0.69]
[1763430876060,18.12096,132.15,132.14,0.69]
[1763430876258,22.64096,132.15,132.14,0.69]
[1763430876480,22.64096,132.15,132.14,10.47882769]
[1763430876664,18.12096,132.15,132.14,10.47882769]
[1763430876844,22.64096,132.15,132.14,10.47882769]
[1763430878173,18.12096,132.15,132.14,10.47882769]
[1763430878361,22.64096,132.15,132.14,10.47882769]
[1763430878555,18.12096,132.16,132.15,9.78882769]
[1763430878868,22.64096,132.16,132.15,10.47882769]
[1763430879458,28.66309542,132.16,132.14,9.78882769]
[1763430881073,6.02213542,132.15,132.14,9.78882769]
[1763430881488,6.71213542,132.15,132.12,9.78882769]
[1763430881670,10.54213542,132.14,132.12,9.78882769]
[1763430881981,6.02213542,132.13,132.12,9.78882769]
[1763430882189,24.85309542,132.13,132.08,0.67]
[1763430882475,24.85309542,132.13,132.09,10.45882769]
[1763430882476,10.54213542,132.12,132.09,10.45882769]
[1763430882662,6.02213542,132.11,132.07,10.45882769]
[1763430882858,4.52,132.1,132.09,9.78882769]
[1763430883182,22.64096,132.1,132.09,9.78882769]
[1763430883352,29.37309542,132.1,132.06,9.78882769]
[1763430883549,6.02213542,132.09,132.06,10.45882769]
[1763430883753,4.52,132.08,132.06,10.45882769]
[1763430884157,10.54213542,132.08,132.06,0.67]
[1763430884372,28.66309542,132.08,132.07,9.78882769]
[1763430885091,22.64096,132.08,132.07,9.78882769]
[1763430885400,22.64096,132.08,132.07,0.67]
[1763430886176,18.12096,132.07,132.06,10.45882769]
[1763430886360,18.12096,132.07,132.06,9.78882769]
[1763430886560,18.12096,132.07,132.05,9.78882769]
[1763430886865,4.52,132.06,132.05,10.45882769]
[1763430887180,4.52,132.06,132.05,9.78882769]
[1763430887569,4.52,132.06,132.05,10.45882769]
[1763430890088,4.52,132.06,132.05,16.48096311]
[1763430890265,6.02213542,132.12,132.05,16.48096311]
[1763430890471,4.52,132.11,132.08,9.78882769]
[1763430890682,18.12096,132.09,132.08,9.78882769]
[1763430890983,102.7,132.15,132.1,9.78882769]
[1763430891283,6.02213542,132.13,132.1,9.78882769]
[1763430891494,18.12096,132.11,132.09,9.78882769]
[1763430891687,4.52,132.1,132.09,9.78882769]
[1763430892268,4.52,132.1,132.05,4.52]
[1763430892474,10.54213542,132.1,132.07,9.78882769]
[1763430892873,4.52,132.1,132.09,9.78882769]
[1763430893097,102.7,132.15,132.09,9.78882769]
[1763430893262,102.7,132.15,132.1,10.45882769]
[1763430893263,18.12096,132.11,132.1,10.45882769]
[1763430893606,22.64096,132.11,132.1,10.45882769]
[1763430893964,4.52,132.11,132.1,10.45882769]
[1763430894166,4.52,132.11,132.1,9.78882769]
[1763430895275,10.54213542,132.11,132.1,9.78882769]
[1763430895914,11.25213542,132.11,132.1,9.78882769]
[1763430896389,18.12096,132.09,132.05,9.78882769]
[1763430896565,10.54213542,132.08,132.05,10.45882769]
[1763430900196,4.52,132.08,132.05,10.45882769]
[1763430900400,10.54213542,132.08,132.05,10.45882769]
[1763430900570,10.54213542,132.08,132.05,0.67]
[1763430901793,18.12096,132.05,132.02,9.78882769]
[1763430901996,4.52,132.04,132.02,9.78882769]
[1763430902176,4.52,132.04,132.02,10.45882769]
[1763430902377,10.54213542,132.04,132.01,9.78882769]
[1763430902567,10.54213542,132.04,131.99,15.81096311]
[1763430902568,6.02213542,132.02,131.99,9.78882769]
[1763430902771,4.52,132.04,131.97,0.2]
[1763430902772,6.02213542,132.0,131.97,0.2]
[1763430903095,18.12096,132.04,131.99,6.02213542]
[1763430903271,4.52,132.02,131.99,9.78882769]
[1763430903473,4.52,132.02,131.99,10.45882769]
[1763430903667,10.54213542,132.02,131.99,10.45882769]
[1763430904492,4.52,132.02,131.99,10.45882769]
[1763430904980,4.52,132.02,131.98,9.78882769]
[1763430905183,6.02213542,132.01,131.98,10.45882769]
[1763430905492,4.52,132.0,131.98,10.45882769]
[1763430905677,4.52,132.0,131.97,9.98882769]
[1763430905883,4.52,132.0,131.97,10.65882769]
[1763430906271,4.52,132.0,131.97,9.98882769]
[1763430906474,4.52,132.0,131.98,0.67]
[1763430907099,6.73213542,131.99,131.97,9.98882769]
[1763430907299,10.54213542,131.98,131.97,9.98882769]
[1763430909190,0.71,132.04,131.97,10.65882769]
[1763430909396,6.02213542,132.02,131.97,16.68096311]
[1763430909597,18.12096,132.01,131.97,10.65882769]
[1763430909795,4.52,132.0,131.97,10.65882769]
[1763430910383,18.12096,132.01,131.97,10.65882769]
[1763430910384,18.12096,132.01,131.98,0.67]
[1763430910688,4.52,132.01,131.98,7.00528242]
[1763430910893,103.41,132.05,131.98,0.67]
[1763430910894,4.52,132.0,131.98,0.67]
[1763430911196,4.52,131.99,131.97,9.98882769]
[1763430911700,4.52,131.99,131.98,0.67]
[1763430912086,4.52,131.99,131.97,9.98882769]
[1763430912275,4.52,131.99,131.98,0.7]
[1763430912701,4.52,131.99,131.98,13.05741784]
[1763430912978,4.52,131.99,131.98,22.84624553]
[1763430913378,4.52,131.99,131.98,16.82411011]
[1763430913588,4.52,131.99,131.98,10.48882769]
[1763430913901,4.52,131.99,131.98,22.84624553]
[1763430914502,4.52,131.99,131.98,10.48882769]
[1763430915210,29.37309542,131.99,131.98,9.78882769]
[1763430915407,22.64096,131.99,131.98,9.78882769]
[1763430916812,22.64096,131.99,131.98,10.48882769]
[1763430917016,11.25213542,131.99,131.98,9.78882769]
[1763430917219,11.25213542,131.99,131.97,9.98882769]
[1763430917383,24.14309542,131.98,131.97,9.98882769]
[1763430917584,24.85309542,131.98,131.97,9.98882769]
[1763430917913,24.14309542,131.98,131.97,9.98882769]
[1763430918485,18.12096,131.98,131.97,9.98882769]
[1763430918900,4.52,131.98,131.97,10.63882769]
[1763430919305,4.52,131.98,131.97,9.98882769]
[1763430921408,7.47421934,131.98,131.97,9.98882769]
[1763430921619,7.47421934,131.98,131.97,0.2]
[1763430924513,5.22,131.98,131.97,0.2]
[1763430924710,21.07517934,131.98,131.97,0.2]
[1763430925022,0.7,132.02,131.97,0.85]
[1763430925318,2.25421934,132.0,131.97,0.2]
[1763430925620,24.91517934,131.99,131.97,0.2]
[1763430925999,22.66096,131.99,131.97,0.2]
[1763430926716,22.66096,131.99,131.97,0.85]
[1763430927092,22.66096,131.99,131.97,0.2]
[1763430927288,22.66096,131.99,131.97,9.98882769]
[1763430927801,29.39814781,131.99,131.97,0.2]
[1763430928127,28.69814781,131.99,131.97,0.2]
[1763430928299,22.66096,131.99,131.97,0.85]
[1763430928821,4.52,131.98,131.97,0.85]
[1763430929406,4.52,131.98,131.97,6.88718781]
[1763430929610,0.7,132.08,131.98,9.78882769]
[1763430929844,0.7,132.09,132.03,6.03718781]
[1763430930132,18.12096,132.06,132.05,9.78882769]
[1763430930319,22.66096,132.06,132.03,10.43882769]
[1763430930738,28.69814781,132.06,132.03,10.43882769]
[1763430930910,18.12096,132.05,132.04,0.65]
[1763430931114,18.12096,132.05,132.04,10.43882769]
[1763430931332,18.12096,132.05,132.04,9.78882769]
[1763430931547,10.57718781,132.06,132.05,9.78882769]
[1763430931832,4.54,132.06,132.03,9.78882769]
[1763430932237,4.54,132.06,132.03,0.65]
[1763430933140,4.54,132.06,132.01,6.03718781]
[1763430933910,4.54,132.06,132.02,6.03718781]
[1763430934219,4.54,132.05,132.04,6.03718781]
[1763430934419,6.73718781,132.11,132.04,6.03718781]
[1763430934626,4.54,132.09,132.06,6.03718781]
[1763430934939,18.12096,132.08,132.06,9.32639946]
[1763430935144,18.12096,132.08,132.07,9.78882769]
[1763430935438,22.66096,132.08,132.07,9.78882769]
[1763430935640,22.66096,132.08,132.06,9.78882769]
[1763430936041,22.66096,132.08,132.06,0.65]
[1763430936216,22.66096,132.08,132.05,9.78882769]
[1763430936625,23.36096,132.08,132.04,9.78882769]
[1763430937026,23.36096,132.08,132.03,9.78882769]
[1763430937027,5.24,132.08,132.03,9.78882769]
[1763430937316,14.56639946,132.08,132.03,19.11522715]
[1763430937533,13.86639946,132.08,132.03,19.76522715]
[1763430937708,28.14735946,132.07,132.02,9.78882769]
[1763430938133,28.14735946,132.07,132.02,10.43882769]
[1763430938332,4.52,132.06,132.02,10.43882769]
[1763430938930,4.52,132.06,132.02,19.76522715]
[1763430939125,4.52,132.06,132.04,9.32639946]
[1763430939326,4.52,132.06,132.05,9.78882769]
[1763430939830,4.52,132.06,132.04,9.78882769]
[1763430941530,4.52,132.06,132.03,9.78882769]
[1763430941830,4.52,132.06,132.03,10.43882769]
[1763430942923,4.52,132.06,132.04,9.97639946]
[1763430943121,4.52,132.06,132.04,16.31757745]
[1763430943318,4.52,132.06,132.05,0.65]
[1763430943631,112.70639946,132.13,132.06,9.78882769]
[1763430943835,4.52,132.12,132.09,9.78882769]
[1763430944040,18.12096,132.1,132.08,9.78882769]
[1763430944232,4.52,132.09,132.08,9.78882769]
[1763430947242,18.12096,132.12,132.08,26.12050419]
[1763430947442,4.52,132.11,132.1,19.11522715]
[1763430947625,10.00639946,132.17,132.11,9.78882769]
[1763430947829,4.52,132.16,132.13,9.78882769]
[1763430948032,22.64096,132.16,132.13,9.78882769]
[1763430948425,22.64096,132.16,132.13,10.43882769]
[1763430948651,4.52,132.16,132.13,10.43882769]
[1763430949066,22.64096,132.16,132.13,10.43882769]
[1763430949745,18.12096,132.15,132.13,10.43882769]
[1763430950129,18.12096,132.15,132.13,9.78882769]
[1763430950329,18.12096,132.15,132.11,9.97639946]
[1763430950540,4.52,132.14,132.12,9.78882769]
[1763430951835,0.68,132.13,132.11,9.78882769]
[1763430952038,4.52,132.12,132.11,9.78882769]
[1763430952438,4.52,132.12,132.1,9.78882769]
[1763430954052,4.52,132.12,132.09,9.78882769]
[1763430954848,5.2,132.12,132.09,9.78882769]
[1763430956143,4.52,132.12,132.09,9.78882769]
[1763430956356,5.2,132.12,132.09,9.78882769]
[1763430956578,4.52,132.12,132.1,9.97639946]
[1763430956757,4.52,132.12,132.1,9.32639946]
[1763430957056,4.52,132.12,132.09,19.11522715]
[1763430957256,4.52,132.12,132.1,0.65]